bitfinex-derivatives/quotes_BNBF0:USTF0_20250507
["timestamp","ask_amount","ask_price","bid_price","bid_amount"]
[1746633001453,0.28947773,601.58,600.66,3.03547773]
[1746633001654,0.30572825,601.57,600.66,3.03547773]
[1746633004056,0.30572825,601.57,600.66,2.746]
[1746633004359,0.59521321,601.57,600.66,3.03548496]
[1746633004557,0.28948496,601.57,600.66,3.03548496]
[1746633004856,0.30572825,601.56,600.66,3.03548496]
[1746633007060,0.30572825,601.56,600.66,2.746]
[1746633007354,0.30572825,601.56,600.66,3.03548616]
[1746633007559,0.28947773,601.57,600.66,3.03548616]
[1746633007859,0.30572825,601.56,600.66,3.03548616]
[1746633010064,0.30572825,601.56,600.66,2.746]
[1746633010362,0.30572825,601.63,600.66,2.746]
[1746633010562,0.28947773,601.57,600.66,3.03547773]
[1746633010962,0.30572825,601.56,600.66,3.03547773]
[1746633013163,0.30572825,601.56,600.66,2.746]
[1746633013365,0.30572825,601.56,600.66,3.03548616]
[1746633016068,0.30572825,601.56,600.66,2.746]
[1746633016267,0.30572825,601.63,600.66,2.746]
[1746633016466,0.28948616,601.57,600.66,3.03548616]
[1746633016766,0.30572825,601.56,600.66,3.03548616]
[1746633019067,0.30572825,601.56,600.66,2.746]
[1746633019367,0.30572825,601.56,600.66,3.03548616]
[1746633019567,0.28948616,601.57,600.66,3.03548616]
[1746633019863,0.30572825,601.56,600.66,3.03548616]
[1746633022167,0.30572825,601.56,600.66,2.746]
[1746633022361,0.30572825,601.56,600.66,3.03548616]
[1746633025071,0.3324247,601.64,600.66,2.746]
[1746633025371,0.28947412,601.62,600.66,2.746]
[1746633025768,0.30571417,601.61,600.66,2.746]
[1746633028269,0.30571417,601.63,600.66,2.746]
[1746633028467,0.28946569,601.62,600.66,2.746]
[1746633028767,0.30571417,601.61,600.66,2.746]
[1746633028967,0.30571417,601.61,600.66,3.0354669]
[1746633031069,0.30571417,601.61,600.66,2.746]
[1746633034271,0.30571417,601.61,600.66,3.03548014]
[1746633034577,0.28947773,601.6,600.66,3.03548014]
[1746633034972,0.30571417,601.59,600.66,3.03548014]
[1746633036780,1.25380918,601.58,600.66,3.03548014]
[1746633036978,1.25380918,601.57,600.66,3.03548014]
[1746633037273,1.55952335,601.56,600.66,2.746]
[1746633037475,1.25380918,601.55,600.66,2.746]
[1746633037676,1.25380918,601.54,600.66,2.746]
[1746633037974,1.55952335,601.53,600.66,2.746]
[1746633038173,1.25380918,601.52,600.66,2.746]
[1746633038376,1.25380918,601.51,600.66,2.746]
[1746633038573,1.25380918,601.5,600.66,2.746]
[1746633038777,1.55952335,601.49,600.66,2.746]
[1746633039073,1.55952335,601.48,600.66,2.746]
[1746633039280,1.25380918,601.47,600.66,2.746]
[1746633039578,1.25380918,601.46,600.66,2.746]
[1746633039780,1.25380918,601.45,600.66,2.746]
[1746633039974,1.25380918,601.44,600.66,2.746]
[1746633040178,1.25380918,601.43,600.66,2.746]
[1746633040377,1.55952335,601.42,600.66,2.746]
[1746633040578,1.25380918,601.41,600.66,2.746]
[1746633040884,1.25380918,601.4,600.66,2.746]
[1746633041184,1.25380918,601.39,600.66,2.746]
[1746633041380,1.25380918,601.38,600.66,2.746]
[1746633041582,1.25380918,601.37,600.66,2.746]
[1746633041779,1.25380918,601.36,600.66,2.746]
[1746633041982,1.25497771,601.35,600.66,2.746]
[1746633042181,1.25497771,601.34,600.66,2.746]
[1746633042380,1.25496218,601.33,600.66,2.746]
[1746633042587,1.25496218,601.32,600.66,2.746]
[1746633042885,1.25496807,601.31,600.66,2.746]
[1746633043084,1.25496807,601.3,600.66,2.746]
[1746633043280,1.25496807,601.29,600.66,2.746]
[1746633043485,0.28956806,601.36,600.66,2.746]
[1746633043682,1.25510897,601.35,600.66,2.746]
[1746633043881,1.25510897,601.34,600.66,2.746]
[1746633044081,1.25510897,601.33,600.66,2.746]
[1746633044285,1.25510897,601.32,600.66,2.746]
[1746633044482,1.25510897,601.31,600.66,2.746]
[1746633044687,1.25510897,601.3,600.66,2.746]
[1746633044987,1.25503728,601.29,600.66,2.746]
[1746633045187,0.28954758,601.45,600.66,2.746]
[1746633045386,1.25503979,601.44,600.66,2.746]
[1746633045585,1.25503979,601.43,600.66,2.746]
[1746633045784,1.25503979,601.42,600.66,2.746]
[1746633045984,0.28954758,601.45,600.66,2.746]
[1746633045985,1.56084042,601.41,600.66,2.746]
[1746633046186,1.56084042,601.4,600.66,2.746]
[1746633046388,0.30580063,601.39,600.66,2.746]
[1746633046581,1.25505944,601.38,600.66,2.746]
[1746633046782,1.25505944,601.37,600.66,2.746]
[1746633046986,1.25510453,601.36,600.66,2.746]
[1746633047286,1.25510453,601.35,600.66,2.746]
[1746633047486,1.25511302,601.34,600.66,2.746]
[1746633047683,0.28952951,601.47,600.66,2.746]
[1746633047882,1.56085529,601.46,600.66,2.746]
[1746633048084,1.25508371,601.45,600.66,2.746]
[1746633048287,1.25508371,601.44,600.66,2.746]
[1746633048484,1.25508371,601.43,600.66,2.746]
[1746633048689,1.25508371,601.42,600.66,2.746]
[1746633048890,1.25508371,601.41,600.66,2.746]
[1746633049190,1.25508371,601.4,600.66,2.746]
[1746633049390,1.25508371,601.39,600.66,2.746]
[1746633049587,0.30577158,601.43,600.66,2.746]
[1746633049783,1.25168939,601.42,600.66,2.746]
[1746633049988,1.25168939,601.41,600.66,2.746]
[1746633050185,1.25168939,601.4,600.66,2.746]
[1746633050384,1.25168939,601.39,600.66,2.746]
[1746633050592,1.25168939,601.38,600.66,2.746]
[1746633050786,1.25168939,601.37,600.66,2.746]
[1746633050986,1.25168939,601.36,600.66,2.746]
[1746633051191,1.25168939,601.35,600.66,2.746]
[1746633051391,1.25168939,601.34,600.66,2.024]
[1746633051596,1.25187194,601.33,600.66,2.024]
[1746633051790,1.25187194,601.32,600.66,2.024]
[1746633051985,1.25187194,601.31,600.66,2.024]
[1746633052190,1.25187194,601.3,600.66,2.024]
[1746633052389,1.25187194,601.29,600.66,2.024]
[1746633052590,1.25187194,601.28,600.66,2.024]
[1746633052791,0.28952951,601.52,600.66,0.794]
[1746633052792,1.25187194,601.27,600.66,0.794]
[1746633052992,1.25187194,601.26,599.51,1.05878633]
[1746633053291,1.25187194,601.25,599.53,0.33359464]
[1746633053493,1.25441299,601.24,599.53,0.33359464]
[1746633053795,1.25441299,601.23,599.54,1.05878633]
[1746633053993,1.25441299,601.22,599.54,1.05878633]
[1746633054288,1.25441299,601.21,599.56,0.33357795]
[1746633054486,1.25441299,601.2,599.56,0.33357795]
[1746633054787,1.25441299,601.19,599.56,0.33357795]
[1746633054989,1.25441299,601.18,599.56,1.70457795]
[1746633055185,1.25384869,601.17,599.56,1.70457795]
[1746633055392,1.25384869,601.16,599.57,0.28968617]
[1746633055590,1.25384869,601.15,599.59,0.33356126]
[1746633055793,1.25384869,601.14,599.59,0.33356126]
[1746633055989,1.25384869,601.13,599.59,0.33356126]
[1746633056193,1.25384869,601.12,599.59,0.33356126]
[1746633056393,1.25384869,601.11,599.59,0.33356126]
[1746633056589,1.25384869,601.1,599.59,0.33356126]
[1746633058996,1.25384869,600.98,599.62,0.33354457]
[1746633059196,1.25384869,600.97,599.62,0.33354457]
[1746633059396,1.25384869,600.96,599.62,0.33354457]
[1746633059596,1.25384869,600.95,599.62,0.33354457]
[1746633059797,1.25384869,600.94,599.62,0.33354457]
[1746633059992,0.28970426,601.47,599.62,0.33354457]
[1746633059993,1.25384869,600.93,599.62,0.33354457]
[1746633060197,1.25384869,600.92,599.62,0.33354457]
[1746633060392,1.25384869,600.91,599.62,0.33354457]
[1746633060596,1.25384869,600.9,599.62,0.33354457]
[1746633060797,1.25384869,600.89,599.62,0.33354457]
[1746633060995,1.25384869,600.88,599.62,0.33354457]
[1746633061195,1.25384869,600.87,599.62,0.33354457]
[1746633061395,1.25384869,600.86,599.62,0.33354457]
[1746633061593,1.25384869,600.85,599.62,0.33354457]
[1746633061797,1.25384869,600.84,599.62,0.33354457]
[1746633061995,1.25384869,600.83,599.62,0.33354457]
[1746633062199,1.25402986,600.82,599.62,0.33354457]
[1746633062394,1.25402986,600.81,599.62,0.33354457]
[1746633062596,1.25402986,600.8,599.62,0.33354457]
[1746633062899,1.25402986,600.79,599.62,0.33354457]
[1746633063099,1.25402986,600.78,599.62,0.33354457]
[1746633063296,1.25402986,600.77,599.62,0.33354457]
[1746633063497,0.28973079,601.44,599.62,0.33354457]
[1746633063704,1.2536028,601.43,599.62,0.33354457]
[1746633063897,1.2536028,601.42,599.62,0.33354457]
[1746633064100,1.2536028,601.41,599.62,0.33354457]
[1746633064301,1.2536028,601.4,599.62,0.33354457]
[1746633064503,1.2536028,601.39,599.62,0.33354457]
[1746633064699,1.2536028,601.38,599.62,0.33354457]
[1746633064899,1.2536028,601.37,599.62,0.33354457]
[1746633065100,1.2536028,601.36,599.62,0.33354457]
[1746633065296,1.2536028,601.35,599.62,0.33354457]
[1746633065496,1.2536028,601.34,599.62,0.33354457]
[1746633065700,1.2536028,601.33,599.62,0.33354457]
[1746633065901,1.2536028,601.32,599.62,0.33354457]
[1746633066101,1.2536028,601.31,599.62,0.33354457]
[1746633066301,1.2536028,601.3,599.62,0.33354457]
[1746633066504,1.2536028,601.29,599.62,0.33354457]
[1746633066699,1.2536028,601.28,599.62,0.33354457]
[1746633066898,1.2536028,601.27,599.62,0.33354457]
[1746633067106,1.2536028,601.26,599.62,0.33354457]
[1746633067303,1.2536028,601.25,599.62,0.33354457]
[1746633067504,1.2536028,601.24,599.62,0.33354457]
[1746633067704,1.2536028,601.23,599.62,0.33354457]
[1746633067901,1.2536028,601.22,599.62,0.33354457]
[1746633068106,1.2536028,601.21,599.62,0.33354457]
[1746633068501,0.28966809,601.42,599.62,0.33354457]
[1746633069007,1.55932712,601.41,599.62,0.33354457]
[1746633069307,1.55932712,601.4,599.62,0.33354457]
[1746633069606,1.55932712,601.39,599.62,0.33354457]
[1746633069806,1.25354985,601.38,599.62,0.33354457]
[1746633069999,1.25354985,601.37,599.62,0.33354457]
[1746633070201,1.25354985,601.36,599.62,0.33354457]
[1746633070402,1.25354985,601.35,599.62,0.33354457]
[1746633070603,1.25083098,601.34,599.62,0.33354457]
[1746633070806,1.25083098,601.33,599.62,0.33354457]
[1746633071008,1.25079971,601.32,599.62,0.33354457]
[1746633071209,1.25079971,601.31,599.62,0.33354457]
[1746633071412,1.25079971,601.3,599.62,0.33354457]
[1746633071612,1.25079971,601.29,599.63,0.856]
[1746633071816,1.25079971,601.28,599.65,0.33352789]
[1746633072113,1.25079971,601.27,599.65,0.33352789]
[1746633072314,1.25079971,601.26,599.65,0.33352789]
[1746633072611,1.25079971,601.25,599.65,0.33352789]
[1746633072811,1.25079971,601.24,599.65,0.33352789]
[1746633073006,1.25079971,601.23,599.65,0.33352789]
[1746633073210,1.25079971,601.22,599.65,0.33352789]
[1746633073407,1.25079971,601.21,599.65,0.33352789]
[1746633073610,1.25079971,601.2,599.65,0.33352789]
[1746633073811,1.25079971,601.19,599.65,0.33352789]
[1746633074008,1.25079971,601.18,599.65,0.33352789]
[1746633074204,1.25079971,601.17,599.65,0.33352789]
[1746633074408,1.25079971,601.16,599.65,0.33352789]
[1746633074606,1.25079971,601.15,599.65,0.33352789]
[1746633074812,0.28967291,601.48,599.65,0.33352789]
[1746633075009,1.25159161,601.47,599.65,0.33352789]
[1746633075211,1.25159161,601.46,599.65,0.33352789]
[1746633075512,1.5573702,601.45,599.65,0.33352789]
[1746633075712,1.25159161,601.44,599.65,0.33352789]
[1746633075909,1.5573702,601.43,599.65,0.33352789]
[1746633076110,1.25159161,601.42,599.65,0.33352789]
[1746633076309,0.3324247,601.64,599.65,0.33352789]
[1746633076517,0.2896488,601.48,599.65,0.33352789]
[1746633076714,1.55742197,601.47,599.65,0.33352789]
[1746633076917,1.55742197,601.46,599.65,0.33352789]
[1746633077118,1.25163948,601.45,599.65,0.33352789]
[1746633077318,1.25163948,601.44,599.65,0.33352789]
[1746633077518,1.25163948,601.43,599.65,0.33352789]
[1746633077819,1.55743028,601.42,599.65,0.33352789]
[1746633078014,1.25163948,601.41,599.65,0.33352789]
[1746633078217,1.25265519,601.4,599.65,0.33352789]
[1746633078414,1.25265519,601.39,599.65,0.33352789]
[1746633078615,1.25265519,601.38,599.65,0.33352789]
[1746633078816,1.25265519,601.37,599.65,0.33352789]
[1746633079015,1.25265519,601.36,599.65,0.33352789]
[1746633079216,1.25265519,601.35,599.65,0.33352789]
[1746633079418,1.25265519,601.34,599.65,0.33352789]
[1746633079621,1.25265519,601.33,599.65,0.33352789]
[1746633079818,1.25265519,601.32,599.65,0.33352789]
[1746633080019,1.25265519,601.31,599.65,0.33352789]
[1746633080214,1.25265519,601.3,599.65,0.33352789]
[1746633080417,1.25265519,601.29,599.65,0.33352789]
[1746633080617,1.25265519,601.28,599.65,0.33352789]
[1746633080815,1.25265519,601.27,599.65,0.33352789]
[1746633081016,1.25265519,601.26,599.65,0.33352789]
[1746633081218,1.25265519,601.25,599.65,0.33352789]
[1746633081420,1.25265519,601.24,599.65,0.33352789]
[1746633081621,1.25265519,601.23,599.65,0.33352789]
[1746633081921,1.25265519,601.22,599.65,0.33352789]
[1746633082117,1.25265519,601.21,599.65,0.33352789]
[1746633082316,1.25265519,601.2,599.65,0.33352789]
[1746633082518,1.25265519,601.19,599.65,0.33352789]
[1746633082722,1.25129503,601.18,599.65,0.33352789]
[1746633083020,1.25129503,601.17,599.65,0.33352789]
[1746633083219,1.25129503,601.16,599.65,0.33352789]
[1746633083519,1.25129503,601.15,599.65,0.33352789]
[1746633083818,1.25129503,601.14,599.65,0.33352789]
[1746633084014,0.28967532,601.48,599.65,0.33352789]
[1746633084015,1.25129503,601.13,599.65,0.33352789]
[1746633084219,0.28967532,601.48,599.65,0.33352789]
[1746633084520,0.30578739,601.47,599.65,0.33352789]
[1746633084821,0.30578739,601.47,599.65,1.00252789]
[1746633085321,0.30578739,601.63,599.65,1.00252789]
[1746633085623,0.28964036,601.48,599.65,1.00252789]
[1746633085816,0.33243575,601.62,599.65,1.00252789]
[1746633086019,0.30578739,601.61,599.65,1.00252789]
[1746633087025,0.28962469,601.6,599.65,1.00252789]
[1746633087322,1.55747924,601.59,599.65,1.00252789]
[1746633087523,1.25169185,601.58,599.65,1.00252789]
[1746633087725,1.55747924,601.57,599.65,1.00252789]
[1746633088025,1.55747924,601.56,599.65,1.00252789]
[1746633088223,1.55747924,601.55,599.65,1.00252789]
[1746633088424,1.55747924,601.54,599.65,1.00252789]
[1746633088618,1.55747924,601.53,599.65,1.00252789]
[1746633088823,1.55747924,601.52,599.65,1.00252789]
[1746633089024,1.55747924,601.51,599.65,1.00252789]
[1746633089226,1.25169185,601.5,599.65,1.00252789]
[1746633089427,1.25169185,601.49,599.65,1.00252789]
[1746633089626,1.25169185,601.48,599.65,2.06131422]
[1746633089823,1.55747924,601.47,599.65,2.06131422]
[1746633090029,1.55747924,601.46,599.65,2.06131422]
[1746633090224,1.55747924,601.45,599.65,2.06131422]
[1746633090528,1.55747924,601.44,599.65,2.06131422]
[1746633090723,1.55747924,601.43,599.65,2.76831422]
[1746633090927,1.55782933,601.42,599.65,2.76831422]
[1746633091127,1.55782933,601.41,599.65,2.76831422]
[1746633091329,1.55782933,601.4,599.65,2.76831422]
[1746633091528,1.25204194,601.39,599.65,2.76831422]
[1746633091729,1.25204194,601.38,599.66,1.05878633]
[1746633091930,1.25204194,601.37,599.68,0.3335112]
[1746633092129,1.55782933,601.36,599.68,0.3335112]
[1746633092329,1.55782933,601.35,599.68,0.3335112]
[1746633092625,1.55782933,601.34,599.68,0.3335112]
[1746633092828,1.25204194,601.33,599.68,0.3335112]
[1746633093026,1.25204194,601.32,599.68,0.3335112]
[1746633093227,1.25204194,601.31,599.68,0.3335112]
[1746633093527,1.25204194,601.3,599.68,0.3335112]
[1746633093826,1.25204194,601.29,599.68,0.3335112]
[1746633094024,1.25204194,601.28,599.68,0.3335112]
[1746633094222,1.25325128,601.27,599.68,0.3335112]
[1746633094429,1.25325128,601.26,599.68,0.3335112]
[1746633094630,1.25325128,601.25,599.68,0.3335112]
[1746633094930,1.25325128,601.24,599.68,0.3335112]
[1746633095128,1.25325128,601.23,599.68,0.3335112]
[1746633095325,1.25325128,601.22,599.68,0.3335112]
[1746633095529,0.28966447,601.47,599.68,0.3335112]
[1746633097226,0.33244128,601.61,599.68,0.3335112]
[1746633097432,0.2896259,601.47,599.68,0.3335112]
[1746633097627,0.33244128,601.61,599.68,0.3335112]
[1746633098132,0.30578579,601.6,599.68,0.3335112]
[1746633099031,0.28962469,601.59,599.68,0.3335112]
[1746633100132,0.33244128,601.61,599.68,0.3335112]
[1746633100431,0.28962469,601.58,599.68,0.3335112]
[1746633101031,0.28962469,601.58,599.68,1.1525112]
[1746633101232,0.28962469,601.58,599.68,1.8305112]
[1746633103131,0.33244128,601.61,599.68,1.8305112]
[1746633103432,0.28962349,601.57,599.68,1.8305112]
[1746633105539,0.30578506,601.56,599.68,1.8305112]
[1746633106339,0.30578506,601.6,599.68,1.8305112]
[1746633106634,0.28962349,601.55,599.68,1.8305112]
[1746633106934,0.30578506,601.54,599.68,1.8305112]
[1746633107539,0.30578506,601.54,599.68,2.5995112]
[1746633112543,0.28962831,601.53,599.68,2.5995112]
[1746633113042,0.30577753,601.52,599.68,2.5995112]
[1746633113843,0.30577753,601.52,599.79,1.05878633]
[1746633114044,0.30577753,601.52,599.81,0.33343892]
[1746633114343,0.30577753,601.52,599.81,0.90143892]
[1746633115544,0.28960541,601.51,599.81,0.90143892]
[1746633115843,0.30577753,601.5,599.81,0.90143892]
[1746633116645,0.28960541,601.51,599.81,0.90143892]
[1746633117446,0.33250207,601.5,599.81,0.90143892]
[1746633117643,0.63836308,601.5,599.81,0.90143892]
[1746633118048,0.30586101,601.49,599.81,0.90143892]
[1746633118348,0.33251313,601.48,599.81,0.90143892]
[1746633118550,0.62217037,601.48,599.81,0.90143892]
[1746633119150,0.33251866,601.47,599.81,0.90143892]
[1746633119342,0.63836969,601.47,599.81,0.90143892]
[1746633119544,0.30585103,601.46,599.81,0.90143892]
[1746633119845,0.63837522,601.46,599.81,0.90143892]
[1746633120249,0.30585103,601.45,599.81,0.90143892]
[1746633121150,0.33252419,601.46,599.81,1.52843892]
[1746633121448,0.30582097,601.45,599.81,1.52843892]
[1746633123449,0.30582097,601.45,599.81,2.30143892]
[1746633124451,0.28964036,601.44,599.81,2.30143892]
[1746633124850,0.30582097,601.43,599.81,2.30143892]
[1746633126351,0.28964036,601.44,599.81,2.30143892]
[1746633126547,0.30581956,601.43,599.81,2.30143892]
[1746633127451,0.30581956,601.45,599.81,2.30143892]
[1746633127651,0.2896476,601.42,599.81,2.30143892]
[1746633128250,0.30581956,601.41,599.81,2.30143892]
[1746633129752,0.2896476,601.42,599.81,2.30143892]
[1746633130155,0.33252419,601.46,599.81,2.30143892]
[1746633130452,0.28964518,601.41,599.81,2.30143892]
[1746633133155,0.33252419,601.46,599.81,2.30143892]
[1746633133749,0.59535576,601.45,599.81,2.30143892]
[1746633134156,0.3058142,601.44,599.81,2.30143892]
[1746633136653,0.28964518,601.43,599.81,2.30143892]
[1746633136958,0.59545938,601.43,599.81,2.30143892]
[1746633137359,0.3058142,601.42,599.81,2.30143892]
[1746633138158,0.28964518,601.43,599.81,2.30143892]
[1746633138558,0.30582122,601.42,599.81,2.30143892]
[1746633139357,0.30582122,601.45,599.81,2.30143892]
[1746633139661,0.28964518,601.41,599.81,2.30143892]
[1746633139962,0.30582122,601.4,599.81,2.30143892]
[1746633142465,0.30582122,601.45,599.81,2.30143892]
[1746633142666,0.28965121,601.39,599.81,2.30143892]
[1746633142965,0.30582122,601.38,599.81,2.30143892]
[1746633143463,0.28965121,601.39,599.81,2.30143892]
[1746633143667,0.33252419,601.46,599.81,2.30143892]
[1746633143865,0.30577527,601.45,599.81,2.30143892]
[1746633144061,0.33252419,601.46,599.81,2.30143892]
[1746633144567,0.30576202,601.45,599.81,2.30143892]
[1746633144767,0.33252419,601.46,599.81,2.30143892]
[1746633147368,0.30573441,601.45,599.81,2.30143892]
[1746633147871,0.33252419,601.46,599.81,2.30143892]
[1746633148164,0.33252419,601.46,599.84,1.05878633]
[1746633148365,0.33252419,601.46,599.86,0.33341112]
[1746633151574,0.33252419,601.46,599.87,0.694]
[1746633152274,0.28949459,601.61,599.88,0.741]
[1746633152474,0.30569316,601.6,599.9,0.33338889]
[1746633153675,0.28949459,601.61,599.9,0.33338889]
[1746633153975,0.30568676,601.6,599.9,0.33338889]
[1746633154874,0.2895536,601.66,599.9,0.96738889]
[1746633155175,0.30568676,601.65,599.9,0.96738889]
[1746633156275,0.30568676,601.65,599.9,1.78438889]
[1746633157570,0.30568676,602.44,599.9,1.78438889]
[1746633157876,0.28945004,601.66,599.9,1.78438889]
[1746633158170,0.30568676,602.43,599.9,1.78438889]
[1746633158370,0.30568676,601.65,599.9,1.78438889]
[1746633158774,0.30568676,602.44,599.9,1.78438889]
[1746633159175,0.5951368,602.43,599.9,1.78438889]
[1746633159370,0.33205492,602.31,599.9,1.78438889]
[1746633159573,0.30568676,602.3,599.9,1.78438889]
[1746633159769,0.33211557,602.2,599.9,1.78438889]
[1746633160076,0.30568676,602.19,599.9,1.78438889]
[1746633160276,0.33213212,602.17,599.9,1.78438889]
[1746633160476,0.30568676,602.16,599.9,1.78438889]
[1746633160772,0.30568676,602.15,599.9,1.78438889]
[1746633161169,0.33213212,602.17,599.9,1.78438889]
[1746633161170,0.30568676,602.16,599.9,1.78438889]
[1746633161676,0.33214866,602.14,599.9,1.78438889]
[1746633162177,0.30568676,602.13,599.9,1.78438889]
[1746633162476,0.33216521,602.11,599.9,1.78438889]
[1746633162771,0.30568676,602.1,599.9,1.78438889]
[1746633162975,0.33218176,602.08,599.9,1.78438889]
[1746633163374,0.30568676,602.07,599.9,1.78438889]
[1746633163573,0.33219832,602.05,599.9,1.78438889]
[1746633163975,0.30568676,602.04,599.9,1.78438889]
[1746633164279,0.33220935,602.03,599.9,1.78438889]
[1746633164780,0.30568676,602.02,599.9,1.78438889]
[1746633164979,0.33222039,602.01,599.9,1.78438889]
[1746633168480,0.30568676,601.9,599.9,1.78438889]
[1746633168679,0.33228663,601.89,599.9,1.78438889]
[1746633169076,0.30568676,601.88,599.9,1.78438889]
[1746633169281,0.33229767,601.87,599.9,1.78438889]
[1746633169580,0.30568676,601.86,599.9,1.78438889]
[1746633172478,0.28950302,601.85,599.9,1.78438889]
[1746633172778,0.30568676,601.84,599.9,1.78438889]
[1746633175391,0.28950543,601.83,599.9,1.78438889]
[1746633175583,0.28950543,601.83,599.9,2.51438889]
[1746633176085,0.30568676,601.82,599.9,2.51438889]
[1746633176391,0.28950543,601.83,599.9,2.51438889]
[1746633177586,0.30564971,601.82,599.9,2.51438889]
[1746633178490,0.33229767,601.87,599.9,2.51438889]
[1746633178692,0.28949339,601.81,599.9,2.51438889]
[1746633179491,0.30565335,601.8,599.9,2.51438889]
[1746633181589,0.28950061,601.79,599.9,2.51438889]
[1746633182091,0.30565335,601.78,599.9,2.51438889]
[1746633184791,0.28950302,601.77,599.9,2.51438889]
[1746633184992,0.30565335,601.76,599.9,2.51438889]
[1746633187495,0.30565335,601.86,599.9,2.51438889]
[1746633187696,0.28949579,601.76,599.9,2.51438889]
[1746633187895,0.30565335,601.86,599.9,2.51438889]
[1746633189098,0.28949579,601.85,599.9,2.51438889]
[1746633189700,0.30565335,601.84,599.9,2.51438889]
[1746633190402,0.30565335,601.86,599.9,2.51438889]
[1746633190603,0.2894982,601.83,599.9,2.51438889]
[1746633191003,0.30565335,601.82,599.9,2.51438889]
[1746633193401,0.28950061,601.81,599.9,2.51438889]
[1746633193705,0.30565335,601.8,599.9,2.51438889]
[1746633196603,0.28949579,601.79,599.9,2.51438889]
[1746633196804,0.30565335,601.78,599.9,2.51438889]
[1746633199409,0.28950543,601.77,599.9,2.51438889]
[1746633199708,0.30565335,601.76,599.9,2.51438889]
[1746633202406,0.33229767,601.87,599.9,2.51438889]
[1746633202606,0.28949579,601.76,599.9,2.51438889]
[1746633202911,0.30565488,601.75,599.9,2.51438889]
[1746633203312,0.30565488,601.86,599.9,2.51438889]
[1746633204114,0.28949579,601.85,599.9,2.51438889]
[1746633204812,0.30565488,601.84,599.9,2.51438889]
[1746633205513,0.2894982,601.83,599.9,2.51438889]
[1746633205710,0.30565488,601.82,599.9,2.51438889]
[1746633208108,0.30565488,601.82,599.9,3.25938889]
[1746633208612,0.2895247,601.81,599.9,3.25938889]
[1746633209008,0.30565488,601.8,599.9,3.25938889]
[1746633209513,0.6379912,601.8,599.9,3.25938889]
[1746633210115,0.63799672,601.79,599.9,3.25938889]
[1746633210413,0.63800224,601.78,599.9,3.25938889]
[1746633210610,0.30565488,601.77,599.9,3.25938889]
[1746633211414,0.28953554,601.76,599.9,3.25938889]
[1746633212018,0.30570728,601.75,599.9,3.25938889]
[1746633213519,0.33236946,601.74,599.9,3.25938889]
[1746633213918,0.30570728,601.73,599.9,3.25938889]
[1746633214119,0.63808226,601.73,599.9,3.25938889]
[1746633214319,0.30570728,601.72,599.9,3.25938889]
[1746633214620,0.5952645,601.72,599.9,3.25938889]
[1746633214814,0.33238603,601.71,599.9,3.25938889]
[1746633215012,0.63809331,601.71,599.9,3.25938889]
[1746633215314,0.33238603,601.71,599.9,3.25938889]
[1746633215522,0.30572186,601.7,599.9,3.25938889]
[1746633216921,0.63811341,601.7,599.9,3.25938889]
[1746633217317,0.30572186,601.69,599.9,3.25938889]
[1746633217522,0.59528631,601.69,599.9,3.25938889]
[1746633218418,0.30572186,601.68,599.9,3.25938889]
[1746633220423,0.28956565,601.67,599.9,3.25938889]
[1746633220824,0.30572186,601.66,599.9,3.25938889]
[1746633223422,0.28956806,601.65,599.9,3.25938889]
[1746633223820,0.30572186,601.64,599.9,3.25938889]
[1746633226432,0.2895536,601.63,599.9,3.25938889]
[1746633226932,0.30572186,601.62,599.9,3.25938889]
[1746633227533,0.2895536,601.63,599.9,3.25938889]
[1746633227829,0.30570817,601.62,599.9,3.25938889]
[1746633229433,0.33239155,601.7,599.9,3.25938889]
[1746633229640,0.28954758,601.63,599.9,3.25938889]
[1746633230337,0.3057079,601.62,599.9,3.25938889]
[1746633231037,0.28954758,601.63,599.9,3.25938889]
[1746633231431,0.3057079,601.62,599.9,3.25938889]
[1746633234939,0.28955601,601.63,599.9,3.25938889]
[1746633235338,0.30570886,601.62,599.9,3.25938889]
[1746633235634,0.28954758,601.63,599.9,3.25938889]
[1746633235935,0.30570886,601.62,599.9,3.25938889]
[1746633238542,0.30570886,601.69,599.9,3.25938889]
[1746633238742,0.28954758,601.63,599.9,3.25938889]
[1746633239141,0.30570886,601.62,599.9,3.25938889]
[1746633241538,0.30570886,601.69,599.9,3.25938889]
[1746633241738,0.28954758,601.63,599.9,3.25938889]
[1746633242038,0.30570886,601.62,599.9,3.25938889]
[1746633244546,0.30570886,601.69,599.9,3.25938889]
[1746633244747,0.28957288,601.61,599.9,3.25938889]
[1746633244939,0.30570886,601.69,599.9,3.25938889]
[1746633246143,0.28956445,601.68,599.9,3.25938889]
[1746633246547,0.30570886,601.67,599.9,3.25938889]
[1746633247546,0.30570886,601.69,599.9,3.25938889]
[1746633247749,0.28956445,601.66,599.9,3.25938889]
[1746633248142,0.30570886,601.65,599.9,3.25938889]
[1746633248546,0.28956445,601.66,599.9,3.25938889]
[1746633253153,0.33239155,601.7,599.9,3.25938889]